[Event "FIDE Women World Blitz 2021"]
[Site "Warsaw"]
[Date "2021.12.29"]
[Round "9.25"]
[White "Pourkashiyan, Atousa"]
[Black "Sandu, Mihaela"]
[Result "1-0"]
[ECO "B84"]
[WhiteElo "2322"]
[BlackElo "2244"]
[Annotator "NA"]
[PlyCount "55"]
[EventDate "2021.12.29"]
[EventType "swiss"]
[EventCountry "POL"]
[Tiebreak "Cut1 Buchholz"]
[SourceTitle "playchess.com"]
[Source "ChessBase"]
[SourceQuality "1"]
[TimeControl "180+2"]

1. e4 {[%emt 0:00:01]} c5 {[%emt 0:00:00]} 2. Nf3 {[%emt 0:00:01]} d6 3. d4 {
[%emt 0:00:01]} cxd4 {[%emt 0:00:04]} 4. Nxd4 {[%emt 0:00:01]} Nf6 {[%emt 0:00:
00]} 5. Nc3 {[%emt 0:00:01]} a6 6. f4 {[%emt 0:00:03]} e6 {[%emt 0:00:09]} 7.
Be2 {[%emt 0:00:03]} Nbd7 {[%emt 0:00:07]} 8. O-O {[%emt 0:00:21]} Qc7 {
[%emt 0:00:03]} 9. Be3 {[%emt 0:00:06]} b5 {[%emt 0:00:16]} 10. a3 {[%emt 0:00:
05]} Bb7 {[%emt 0:00:02]} 11. Bd3 {[%emt 0:00:02]} Nc5 {[%emt 0:00:16]} 12. Qf3
{[%emt 0:00:01]} Be7 {[%emt 0:00:08]} 13. Rae1 {[%emt 0:00:02]} O-O {[%emt 0:
00:16]} 14. Kh1 {[%emt 0:00:01]} Nxd3 {[%emt 0:00:02]} 15. cxd3 {[%emt 0:00:01]
} Nd7 {[%emt 0:00:20]} 16. Qh5 {[%emt 0:00:27]} g6 {[%emt 0:00:24]} 17. Qh3 {
[%emt 0:00:13]} e5 {[%emt 0:00:11]} 18. Nf3 {[%emt 0:00:22]} exf4 {[%emt 0:00:
02]} 19. Bxf4 {[%emt 0:00:02]} Ne5 {[%emt 0:00:28]} 20. Ng5 {[%emt 0:00:02]} h5
{[%emt 0:00:05]} 21. d4 {[%emt 0:00:30]} Ng4 {[%emt 0:00:08]} 22. Qg3 {[%emt 0:
00:05]} Qc4 {[%emt 0:00:26]} 23. Nf3 {[%emt 0:00:04]} a5 {[%emt 0:00:12]} 24.
h3 {[%emt 0:00:15]} Nf6 {[%emt 0:00:02]} 25. Bxd6 {[%emt 0:00:05]} Bxd6 {
[%emt 0:00:06]} 26. Qxd6 {[%emt 0:00:01]} Nxe4 {[%emt 0:00:02]} 27. Nxe4 {
[%emt 0:00:04]} Bxe4 {[%emt 0:00:01]} 28. Nd2 {[%emt 0:00:06]} 1-0

[Event "FIDE Women World Blitz 2021"]
[Site "Warsaw"]
[Date "2021.12.29"]
[Round "9.26"]
[White "Girya, Olga"]
[Black "Sliwicka, Alicja"]
[Result "1-0"]
[ECO "A58"]
[WhiteElo "2402"]
[BlackElo "2303"]
[Annotator "NA"]
[PlyCount "83"]
[EventDate "2021.12.29"]
[EventType "swiss"]
[EventCountry "POL"]
[Tiebreak "Cut1 Buchholz"]
[SourceTitle "playchess.com"]
[Source "ChessBase"]
[SourceQuality "1"]
[TimeControl "180+2"]

1. d4 {[%emt 0:00:01]} Nf6 {[%emt 0:00:01]} 2. c4 {[%emt 0:00:00]} c5 {[%emt 0:
00:01]} 3. d5 {[%emt 0:00:01]} b5 {[%emt 0:00:01]} 4. cxb5 {[%emt 0:00:01]} a6
{[%emt 0:00:00]} 5. bxa6 {[%emt 0:00:02]} g6 {[%emt 0:00:01]} 6. Nc3 {[%emt 0:
00:01]} Bg7 {[%emt 0:00:01]} 7. e4 {[%emt 0:00:01]} O-O {[%emt 0:00:02]} 8. a4
{[%emt 0:00:04]} d6 {[%emt 0:00:41]} 9. Nf3 {[%emt 0:00:06]} Nxa6 {[%emt 0:00:
24]} 10. Bc4 {[%emt 0:00:10]} Nb4 {[%emt 0:00:09]} 11. O-O {[%emt 0:00:03]} Qa5
{[%emt 0:00:04]} 12. Bd2 {[%emt 0:00:09]} Ba6 {[%emt 0:00:02]} 13. Bxa6 {
[%emt 0:00:18]} Qxa6 {[%emt 0:00:02]} 14. Nb5 {[%emt 0:00:05]} Qb7 {[%emt 0:00:
19]} 15. Bxb4 {[%emt 0:00:02]} cxb4 {[%emt 0:00:01]} 16. Re1 {[%emt 0:00:05]}
Nd7 {[%emt 0:00:04]} 17. Nfd4 {[%emt 0:00:07]} Nc5 {[%emt 0:00:13]} 18. b3 {
[%emt 0:00:09]} Rae8 {[%emt 0:00:19]} 19. Rc1 {[%emt 0:00:03]} f5 {[%emt 0:00:
04]} 20. exf5 {[%emt 0:00:05]} Qxd5 {[%emt 0:00:06]} 21. Ne6 {[%emt 0:00:16]}
Qxd1 {[%emt 0:00:10]} 22. Rcxd1 {[%emt 0:00:05]} Rxf5 {[%emt 0:00:10]} 23. Nxg7
{[%emt 0:00:08]} Kxg7 {[%emt 0:00:13]} 24. Nxd6 {[%emt 0:00:02]} exd6 {[%emt 0:
00:07]} 25. Rxe8 {[%emt 0:00:01]} Nxb3 {[%emt 0:00:01]} 26. Rb8 {[%emt 0:00:02]
} Rf4 {[%emt 0:00:06]} 27. Rb1 {[%emt 0:00:07]} Rc4 {[%emt 0:00:17]} 28. g3 {
[%emt 0:00:01]} Nc5 {[%emt 0:00:07]} 29. R8xb4 {[%emt 0:00:08]} Rc2 {[%emt 0:
00:02]} 30. Rd4 {[%emt 0:00:04]} Ra2 {[%emt 0:00:03]} 31. Rxd6 {[%emt 0:00:06]}
Rxa4 {[%emt 0:00:02]} 32. Rc1 {[%emt 0:00:04]} Ne4 {[%emt 0:00:02]} 33. Rd7+ {
[%emt 0:00:04]} Kh6 {[%emt 0:00:02]} 34. Rcc7 {[%emt 0:00:03]} Nf6 {[%emt 0:00:
01]} 35. Rf7 {[%emt 0:00:01]} Ra6 {[%emt 0:00:04]} 36. Kg2 {[%emt 0:00:05]} Kg5
{[%emt 0:00:02]} 37. h4+ {[%emt 0:00:11]} Kf5 {[%emt 0:00:02]} 38. Rf8 {
[%emt 0:00:09]} Ke5 {[%emt 0:00:03]} 39. Re7+ {[%emt 0:00:02]} Kf5 {[%emt 0:00:
02]} 40. Rxh7 {[%emt 0:00:03]} Kg4 {[%emt 0:00:05]} 41. Rhf7 {[%emt 0:00:05]}
Nd5 {[%emt 0:00:03]} 42. f3+ {[%emt 0:00:06]} 1-0

[Event "FIDE Women World Blitz 2021"]
[Site "Warsaw"]
[Date "2021.12.29"]
[Round "9.27"]
[White "Dworakowska, Joanna"]
[Black "Kovanova, Baira"]
[Result "0-1"]
[ECO "C50"]
[WhiteElo "2228"]
[BlackElo "2331"]
[Annotator "NA"]
[PlyCount "120"]
[EventDate "2021.12.29"]
[EventType "swiss"]
[EventCountry "POL"]
[Tiebreak "Cut1 Buchholz"]
[SourceTitle "playchess.com"]
[Source "ChessBase"]
[SourceQuality "1"]
[TimeControl "180+2"]

1. e4 {[%emt 0:00:01]} e5 {[%emt 0:00:01]} 2. Nf3 {[%emt 0:00:01]} Nc6 {
[%emt 0:00:01]} 3. Bc4 {[%emt 0:00:01]} Nf6 {[%emt 0:00:02]} 4. d3 {[%emt 0:00:
03]} Bc5 {[%emt 0:00:04]} 5. a3 {[%emt 0:00:04]} a5 {[%emt 0:00:10]} 6. Nc3 {
[%emt 0:00:06]} h6 {[%emt 0:00:02]} 7. Ba2 {[%emt 0:00:15]} d6 {[%emt 0:00:02]}
8. Be3 {[%emt 0:00:21]} Ba7 {[%emt 0:00:32]} 9. Qd2 {[%emt 0:00:12]} Be6 {
[%emt 0:00:04]} 10. Nd5 {[%emt 0:00:02]} Bxd5 {[%emt 0:00:34]} 11. exd5 {
[%emt 0:00:03]} Ne7 {[%emt 0:00:01]} 12. c4 {[%emt 0:00:06]} Nf5 {[%emt 0:00:
09]} 13. Bxa7 Rxa7 {[%emt 0:00:01]} 14. O-O {[%emt 0:00:36]} O-O {[%emt 0:00:
02]} 15. d4 {[%emt 0:00:01]} e4 {[%emt 0:00:26]} 16. Ne1 {[%emt 0:00:08]} Re8 {
[%emt 0:00:06]} 17. Nc2 {[%emt 0:00:01]} Ra8 {[%emt 0:00:24]} 18. Rae1 {
[%emt 0:00:01]} Nh5 {[%emt 0:00:05]} 19. Bb1 {[%emt 0:00:21]} Qh4 {[%emt 0:00:
06]} 20. Re2 {[%emt 0:00:35]} Nf4 {[%emt 0:00:02]} 21. Ree1 {[%emt 0:00:09]}
Qg5 {[%emt 0:00:01]} 22. Ne3 {[%emt 0:00:10]} Nxg2 {[%emt 0:00:21]} 23. Kh1 {
[%emt 0:00:08]} Ngh4 {[%emt 0:00:04]} 24. Rg1 {[%emt 0:00:05]} Qf4 {[%emt 0:00:
00]} 25. Rg3 {[%emt 0:00:11]} Nxg3+ {[%emt 0:00:06]} 26. fxg3 {[%emt 0:00:02]}
Qf3+ {[%emt 0:00:00]} 27. Kg1 {[%emt 0:00:02]} Nf5 {[%emt 0:00:06]} 28. Nxf5
Qxf5 {[%emt 0:00:02]} 29. Qe3 {[%emt 0:00:07]} Qf3 {[%emt 0:00:08]} 30. Qd2 {
[%emt 0:00:07]} e3 {[%emt 0:00:03]} 31. Qe2 {[%emt 0:00:01]} Qxe2 {[%emt 0:00:
02]} 32. Rxe2 {[%emt 0:00:01]} Re7 {[%emt 0:00:01]} 33. Kg2 {[%emt 0:00:02]}
Rae8 {[%emt 0:00:01]} 34. Kf3 {[%emt 0:00:00]} g6 {[%emt 0:00:01]} 35. Bd3 {
[%emt 0:00:02]} Kg7 {[%emt 0:00:01]} 36. Rc2 {[%emt 0:00:03]} f5 {[%emt 0:00:
01]} 37. c5 {[%emt 0:00:01]} Kf6 {[%emt 0:00:03]} 38. c6 {[%emt 0:00:03]} bxc6
{[%emt 0:00:03]} 39. dxc6 {[%emt 0:00:01]} g5 {[%emt 0:00:03]} 40. b4 {[%emt 0:
00:04]} axb4 {[%emt 0:00:01]} 41. axb4 {[%emt 0:00:01]} Ra8 {[%emt 0:00:01]}
42. b5 {[%emt 0:00:01]} Ra3 {[%emt 0:00:01]} 43. Be2 {[%emt 0:00:01]} Rb3 {
[%emt 0:00:01]} 44. Ra2 {[%emt 0:00:03]} Rb4 {[%emt 0:00:03]} 45. Ra7 {[%emt 0:
00:02]} g4+ {[%emt 0:00:01]} 46. Kg2 {[%emt 0:00:03]} Rb2 {[%emt 0:00:03]} 47.
Kf1 {[%emt 0:00:02]} Rb1+ {[%emt 0:00:02]} 48. Kg2 {[%emt 0:00:00]} Re1 {
[%emt 0:00:03]} 49. Bd3 {[%emt 0:00:04]} e2 {[%emt 0:00:01]} 50. b6 {[%emt 0:
00:01]} Rg1+ {[%emt 0:00:03]} 51. Kxg1 {[%emt 0:00:02]} e1=Q+ {[%emt 0:00:02]}
52. Bf1 {[%emt 0:00:01]} Qe3+ {[%emt 0:00:02]} 53. Kh1 {[%emt 0:00:02]} cxb6 {
[%emt 0:00:02]} 54. c7 {[%emt 0:00:02]} Qc3 {[%emt 0:00:05]} 55. d5 {[%emt 0:
00:02]} Rxc7 {[%emt 0:00:02]} 56. Ra8 {[%emt 0:00:03]} Qf3+ {[%emt 0:00:01]}
57. Kg1 {[%emt 0:00:01]} Rc1 {[%emt 0:00:01]} 58. Rf8+ {[%emt 0:00:01]} Ke7 {
[%emt 0:00:01]} 59. Rxf5 {[%emt 0:00:02]} Qxf5 {[%emt 0:00:02]} 60. Kg2 {
[%emt 0:00:02]} Qxf1# {[%emt 0:00:02]} 0-1

[Event "FIDE Women World Blitz 2021"]
[Site "Warsaw"]
[Date "2021.12.29"]
[Round "9.28"]
[White "Rakhmangulova, Anastasiya"]
[Black "Efimenko, Maria"]
[Result "1/2-1/2"]
[ECO "B06"]
[WhiteElo "2174"]
[BlackElo "2207"]
[Annotator "NA"]
[PlyCount "81"]
[EventDate "2021.12.29"]
[EventType "swiss"]
[EventCountry "POL"]
[Tiebreak "Cut1 Buchholz"]
[SourceTitle "playchess.com"]
[Source "ChessBase"]
[SourceQuality "1"]
[TimeControl "180+2"]

1. e4 {[%emt 0:00:01]} g6 {[%emt 0:00:00]} 2. Nc3 {[%emt 0:00:03]} Bg7 {
[%emt 0:00:02]} 3. g3 {[%emt 0:00:01]} d6 {[%emt 0:00:01]} 4. Bg2 {[%emt 0:00:
01]} e5 {[%emt 0:00:02]} 5. Nge2 {[%emt 0:00:02]} Ne7 {[%emt 0:00:01]} 6. O-O {
[%emt 0:00:01]} O-O {[%emt 0:00:02]} 7. d3 {[%emt 0:00:01]} c6 {[%emt 0:00:03]}
8. h3 {[%emt 0:00:45]} Be6 {[%emt 0:00:17]} 9. Be3 {[%emt 0:00:32]} f5 {
[%emt 0:00:09]} 10. Qd2 {[%emt 0:00:04]} Nd7 {[%emt 0:00:19]} 11. exf5 {
[%emt 0:00:24]} Nxf5 {[%emt 0:00:07]} 12. Bg5 {[%emt 0:00:04]} Bf6 {[%emt 0:00:
12]} 13. Ne4 {[%emt 0:00:08]} Bxg5 {[%emt 0:00:11]} 14. Nxg5 {[%emt 0:00:01]}
Qe7 {[%emt 0:00:08]} 15. Nxe6 {[%emt 0:00:03]} Qxe6 {[%emt 0:00:01]} 16. a4 {
[%emt 0:00:26]} Rf7 {[%emt 0:00:14]} 17. Rae1 {[%emt 0:00:01]} Raf8 {[%emt 0:
00:05]} 18. d4 {[%emt 0:00:07]} Qf6 {[%emt 0:00:13]} 19. d5 {[%emt 0:00:04]} c5
{[%emt 0:00:04]} 20. Nc3 {[%emt 0:00:01]} Nd4 {[%emt 0:00:04]} 21. Ne4 {
[%emt 0:00:10]} Qe7 {[%emt 0:00:02]} 22. Re3 {[%emt 0:00:09]} h6 {[%emt 0:00:
06]} 23. c3 {[%emt 0:00:02]} Nf5 {[%emt 0:00:06]} 24. Ree1 {[%emt 0:00:03]} Kg7
{[%emt 0:00:01]} 25. f4 {[%emt 0:00:13]} Qd8 {[%emt 0:00:39]} 26. Rf2 {[%emt 0:
00:01]} exf4 {[%emt 0:00:05]} 27. Rxf4 {[%emt 0:00:05]} Ne5 {[%emt 0:00:02]}
28. Ref1 {[%emt 0:00:01]} Nc4 {[%emt 0:00:05]} 29. Qe2 {[%emt 0:00:14]} Nce3 {
[%emt 0:00:01]} 30. R1f2 {[%emt 0:00:02]} Nxd5 {[%emt 0:00:03]} 31. R4f3 {
[%emt 0:00:03]} Nf6 {[%emt 0:00:01]} 32. Nxf6 {[%emt 0:00:09]} Rxf6 {[%emt 0:
00:01]} 33. g4 {[%emt 0:00:01]} Nh4 {[%emt 0:00:02]} 34. Rxf6 {[%emt 0:00:01]}
Rxf6 {[%emt 0:00:01]} 35. Rxf6 {[%emt 0:00:01]} Qxf6 {[%emt 0:00:01]} 36. Bxb7
{[%emt 0:00:02]} Qg5 {[%emt 0:00:14]} 37. Bd5 {[%emt 0:00:03]} Qxd5 {[%emt 0:
00:01]} 38. Qe7+ {[%emt 0:00:01]} Kg8 {[%emt 0:00:07]} 39. Qd8+ {[%emt 0:00:01]
} Kg7 {[%emt 0:00:01]} 40. Qe7+ {[%emt 0:00:01]} Kg8 {[%emt 0:00:01]} 41. Qd8+
{[%emt 0:00:01]} 1/2-1/2

[Event "FIDE Women World Blitz 2021"]
[Site "Warsaw"]
[Date "2021.12.29"]
[Round "9.29"]
[White "Lach, Aleksandra"]
[Black "Antolak, Julia"]
[Result "1-0"]
[ECO "B24"]
[WhiteElo "2204"]
[BlackElo "2334"]
[Annotator "NA"]
[PlyCount "59"]
[EventDate "2021.12.29"]
[EventType "swiss"]
[EventCountry "POL"]
[Tiebreak "Cut1 Buchholz"]
[SourceTitle "playchess.com"]
[Source "ChessBase"]
[SourceQuality "1"]
[TimeControl "180+2"]

1. e4 {[%emt 0:00:02]} c5 {[%emt 0:00:01]} 2. Nc3 {[%emt 0:00:01]} e6 {[%emt 0:
00:01]} 3. Nge2 {[%emt 0:00:04]} Nc6 {[%emt 0:00:10]} 4. g3 {[%emt 0:00:01]} d5
{[%emt 0:00:00]} 5. exd5 {[%emt 0:00:08]} exd5 {[%emt 0:00:02]} 6. d4 {[%emt 0:
00:01]} cxd4 {[%emt 0:00:07]} 7. Nxd4 {[%emt 0:00:09]} Nf6 {[%emt 0:00:04]} 8.
Bg2 {[%emt 0:00:22]} Be7 {[%emt 0:00:09]} 9. O-O {[%emt 0:00:05]} O-O {[%emt 0:
00:05]} 10. Bf4 {[%emt 0:00:04]} Bg4 {[%emt 0:00:27]} 11. Qd2 {[%emt 0:00:24]}
Qd7 {[%emt 0:00:17]} 12. Rfe1 {[%emt 0:00:18]} Rfd8 {[%emt 0:00:12]} 13. Kh1 {
[%emt 0:00:23]} Rac8 {[%emt 0:00:08]} 14. f3 {[%emt 0:00:07]} Bh5 {[%emt 0:00:
08]} 15. g4 {[%emt 0:00:04]} Bg6 {[%emt 0:00:03]} 16. Nxc6 {[%emt 0:00:09]}
bxc6 {[%emt 0:00:04]} 17. Rad1 {[%emt 0:00:16]} Ne8 {[%emt 0:00:20]} 18. Ne2 {
[%emt 0:00:06]} Nd6 {[%emt 0:00:06]} 19. b3 {[%emt 0:00:00]} Bf8 {[%emt 0:00:
12]} 20. Ng3 {[%emt 0:00:13]} Qb7 {[%emt 0:00:13]} 21. Be3 {[%emt 0:00:10]} Nb5
{[%emt 0:00:14]} 22. f4 {[%emt 0:00:02]} f6 {[%emt 0:00:09]} 23. f5 {[%emt 0:
00:02]} Bf7 {[%emt 0:00:01]} 24. g5 {[%emt 0:00:02]} fxg5 {[%emt 0:00:04]} 25.
Bxg5 {[%emt 0:00:01]} Re8 {[%emt 0:00:01]} 26. f6 {[%emt 0:00:03]} Nd6 {
[%emt 0:00:10]} 27. Qf4 {[%emt 0:00:11]} Rxe1+ {[%emt 0:00:15]} 28. Rxe1 {
[%emt 0:00:00]} Re8 {[%emt 0:00:01]} 29. Rf1 {[%emt 0:00:05]} g6 {[%emt 0:00:
07]} 30. Bh6 {[%emt 0:00:01]} 1-0

[Event "FIDE Women World Blitz 2021"]
[Site "Warsaw"]
[Date "2021.12.29"]
[Round "9.30"]
[White "Loskutova, Viktoriya"]
[Black "Nomin-Erdene, Davaademberel"]
[Result "0-1"]
[ECO "B13"]
[WhiteElo "2195"]
[BlackElo "2188"]
[Annotator "NA"]
[PlyCount "90"]
[EventDate "2021.12.29"]
[EventType "swiss"]
[EventCountry "POL"]
[Tiebreak "Cut1 Buchholz"]
[SourceTitle "playchess.com"]
[Source "ChessBase"]
[SourceQuality "1"]
[TimeControl "180+2"]

1. e4 {[%emt 0:00:01]} c6 {[%emt 0:00:00]} 2. d4 {[%emt 0:00:01]} d5 {[%emt 0:
00:01]} 3. exd5 {[%emt 0:00:01]} cxd5 {[%emt 0:00:01]} 4. Bd3 {[%emt 0:00:01]}
Nc6 {[%emt 0:00:00]} 5. c3 {[%emt 0:00:01]} g6 {[%emt 0:00:01]} 6. Nf3 {
[%emt 0:00:04]} Bg7 {[%emt 0:00:01]} 7. O-O {[%emt 0:00:02]} Nh6 {[%emt 0:00:
01]} 8. Re1 {[%emt 0:00:03]} O-O {[%emt 0:00:01]} 9. Nbd2 {[%emt 0:00:05]} f6 {
[%emt 0:00:01]} 10. c4 {[%emt 0:00:05]} e6 {[%emt 0:00:10]} 11. Qb3 {[%emt 0:
00:31]} Nf7 {[%emt 0:00:04]} 12. Nf1 {[%emt 0:00:11]} Na5 {[%emt 0:00:18]} 13.
Qb4 {[%emt 0:00:16]} Nxc4 {[%emt 0:00:02]} 14. Bxc4 {[%emt 0:00:03]} dxc4 {
[%emt 0:00:01]} 15. Qxc4 {[%emt 0:00:02]} Bd7 {[%emt 0:00:03]} 16. Bf4 {
[%emt 0:00:19]} Rc8 {[%emt 0:00:07]} 17. Qb3 {[%emt 0:00:03]} Qb6 {[%emt 0:00:
07]} 18. Qxb6 {[%emt 0:00:26]} axb6 {[%emt 0:00:01]} 19. Ne3 {[%emt 0:00:07]}
g5 {[%emt 0:00:07]} 20. Bg3 {[%emt 0:00:03]} f5 {[%emt 0:00:17]} 21. Be5 {
[%emt 0:00:12]} Nxe5 {[%emt 0:00:05]} 22. Nxe5 {[%emt 0:00:03]} Bb5 {[%emt 0:
00:04]} 23. Rec1 {[%emt 0:00:07]} Rfd8 {[%emt 0:00:10]} 24. Rxc8 {[%emt 0:00:
05]} Rxc8 {[%emt 0:00:00]} 25. a4 {[%emt 0:00:12]} Be8 {[%emt 0:00:05]} 26.
N3c4 {[%emt 0:00:05]} Rd8 {[%emt 0:00:00]} 27. Nxb6 {[%emt 0:00:21]} Rxd4 {
[%emt 0:00:01]} 28. Nf3 {[%emt 0:00:03]} Rb4 {[%emt 0:00:03]} 29. a5 {[%emt 0:
00:02]} Rxb2 {[%emt 0:00:07]} 30. Rc1 {[%emt 0:00:04]} g4 {[%emt 0:00:06]} 31.
Ng5 {[%emt 0:00:04]} Bh6 {[%emt 0:00:06]} 32. h4 {[%emt 0:00:15]} gxh3 {
[%emt 0:00:01]} 33. f4 {[%emt 0:00:03]} Rxg2+ {[%emt 0:00:04]} 34. Kh1 {
[%emt 0:00:02]} Bc6 {[%emt 0:00:01]} 35. Rxc6 {[%emt 0:00:02]} bxc6 {[%emt 0:
00:02]} 36. Nxh3 {[%emt 0:00:04]} Ra2 {[%emt 0:00:01]} 37. Nc4 {[%emt 0:00:01]}
Ra4 {[%emt 0:00:01]} 38. Ne5 {[%emt 0:00:01]} Rxa5 {[%emt 0:00:05]} 39. Nxc6 {
[%emt 0:00:01]} Ra4 {[%emt 0:00:04]} 40. Nd8 {[%emt 0:00:04]} Ra6 {[%emt 0:00:
11]} 41. Nb7 {[%emt 0:00:03]} Kf8 {[%emt 0:00:06]} 42. Nc5 {[%emt 0:00:02]} Rc6
{[%emt 0:00:01]} 43. Nd7+ {[%emt 0:00:02]} Ke7 {[%emt 0:00:01]} 44. Ne5 {
[%emt 0:00:01]} Rc2 {[%emt 0:00:05]} 45. Nd3 {[%emt 0:00:03]} Rc3 {[%emt 0:00:
02]} 0-1

[Event "FIDE Women World Blitz 2021"]
[Site "Warsaw"]
[Date "2021.12.29"]
[Round "9.31"]
[White "Gaboyan, Susanna"]
[Black "Batsiashvili, Nino"]
[Result "0-1"]
[ECO "E01"]
[WhiteElo "2253"]
[BlackElo "2491"]
[Annotator "ChessBase"]
[PlyCount "56"]
[EventDate "2021.12.29"]
[EventType "swiss"]
[EventCountry "POL"]
[Tiebreak "Cut1 Buchholz"]
[SourceTitle "playchess.com"]
[Source "ChessBase"]
[SourceQuality "1"]
[TimeControl "180+2"]

1. Nf3 {[%emt 0:00:01]} d5 {[%emt 0:00:00]} 2. g3 {[%emt 0:00:01]} Nf6 {
[%emt 0:00:01]} 3. Bg2 {[%emt 0:00:01]} c5 {[%emt 0:00:01]} 4. O-O {[%emt 0:00:
01]} Nc6 {[%emt 0:00:00]} 5. d4 {[%emt 0:00:01]} e6 {[%emt 0:00:03]} 6. c4 {
[%emt 0:00:01]} cxd4 {[%emt 0:00:02]} 7. Nxd4 {[%emt 0:00:02]} Bc5 {[%emt 0:00:
01]} 8. Nxc6 {[%emt 0:00:18]} bxc6 {[%emt 0:00:01]} 9. Nc3 {[%emt 0:00:01]} O-O
{[%emt 0:00:04]} 10. Bg5 {[%emt 0:00:21]} h6 {[%emt 0:00:03]} 11. Bxf6 {
[%emt 0:00:13]} Qxf6 {[%emt 0:00:02]} 12. cxd5 {[%emt 0:00:01]} cxd5 {[%emt 0:
00:01]} 13. Nxd5 {[%emt 0:00:22]} Qxb2 {[%emt 0:00:51]} 14. Nf6+ {[%emt 0:00:
32]} Qxf6 {[%emt 0:00:05]} 15. Bxa8 {[%emt 0:00:01]} Ba6 {[%emt 0:00:03]} 16.
Bf3 {[%emt 0:00:02]} e5 {[%emt 0:00:08]} 17. Qa4 {[%emt 0:00:08]} Bc8 {[%emt 0:
00:20]} 18. Qc6 {[%emt 0:00:05]} Qxc6 {[%emt 0:00:14]} 19. Bxc6 {[%emt 0:00:01]
} Be6 {[%emt 0:00:04]} 20. Rac1 {[%emt 0:00:13]} Bb6 {[%emt 0:00:08]} 21. a4 {
[%emt 0:00:02]} h5 {[%emt 0:00:09]} 22. Rfd1 {[%emt 0:00:01]} g6 {[%emt 0:00:
01]} 23. Bd5 {[%emt 0:00:04]} Bg4 {[%emt 0:00:05]} 24. Bf3 {[%emt 0:00:20]} Be6
{[%emt 0:00:02]} 25. Kg2 {[%emt 0:00:13]} Bb3 {[%emt 0:00:02]} 26. Rd7 {
[%emt 0:00:03]} Bxa4 {[%emt 0:00:01]} 27. Rb7 {[%emt 0:00:03]} Bb3 {[%emt 0:00:
05]} 28. Rd1 {[%emt 0:00:04]} Bxd1 {[%emt 0:00:01]} 0-1

[Event "FIDE Women World Blitz 2021"]
[Site "Warsaw"]
[Date "2021.12.29"]
[Round "9.32"]
[White "Berend, Elvira"]
[Black "Beydullayeva, Govhar"]
[Result "1/2-1/2"]
[ECO "E15"]
[WhiteElo "2328"]
[BlackElo "2278"]
[Annotator "NA"]
[PlyCount "69"]
[EventDate "2021.12.29"]
[EventType "swiss"]
[EventCountry "POL"]
[Tiebreak "Cut1 Buchholz"]
[SourceTitle "playchess.com"]
[Source "ChessBase"]
[SourceQuality "1"]
[TimeControl "180+2"]

1. d4 {[%emt 0:00:01]} Nf6 {[%emt 0:00:00]} 2. c4 {[%emt 0:00:02]} e6 {[%emt 0:
00:01]} 3. Nf3 {[%emt 0:00:02]} b6 {[%emt 0:00:01]} 4. g3 {[%emt 0:00:01]} Ba6
{[%emt 0:00:02]} 5. Qc2 {[%emt 0:00:05]} c5 {[%emt 0:00:00]} 6. Bg2 {[%emt 0:
00:03]} Bb7 {[%emt 0:00:02]} 7. d5 {[%emt 0:00:21]} exd5 {[%emt 0:00:03]} 8.
Nh4 {[%emt 0:00:01]} Be7 {[%emt 0:00:29]} 9. Nc3 {[%emt 0:00:09]} O-O {[%emt 0:
00:03]} 10. cxd5 {[%emt 0:00:03]} d6 {[%emt 0:00:16]} 11. O-O {[%emt 0:00:03]}
g6 {[%emt 0:00:05]} 12. Bh6 {[%emt 0:00:07]} Re8 {[%emt 0:00:00]} 13. h3 {
[%emt 0:00:06]} Nbd7 {[%emt 0:00:02]} 14. Rad1 {[%emt 0:00:04]} a6 {[%emt 0:00:
08]} 15. a4 {[%emt 0:00:01]} c4 {[%emt 0:00:01]} 16. Nf3 {[%emt 0:00:10]} Rc8 {
[%emt 0:00:08]} 17. Nd4 {[%emt 0:00:02]} Nc5 {[%emt 0:00:11]} 18. Nc6 {[%emt 0:
00:05]} Bxc6 {[%emt 0:00:28]} 19. dxc6 {[%emt 0:00:01]} Bf8 {[%emt 0:00:05]}
20. Bg5 {[%emt 0:00:05]} Be7 {[%emt 0:00:08]} 21. Rfe1 {[%emt 0:00:16]} Kg7 {
[%emt 0:00:30]} 22. Qd2 {[%emt 0:00:25]} Nfe4 {[%emt 0:00:27]} 23. Bh6+ {
[%emt 0:00:10]} Kg8 {[%emt 0:00:06]} 24. Nxe4 {[%emt 0:00:03]} Nxe4 25. Bxe4 {
[%emt 0:00:02]} Bf6 {[%emt 0:00:16]} 26. Bg2 {[%emt 0:00:04]} b5 {[%emt 0:00:
04]} 27. axb5 {[%emt 0:00:01]} axb5 28. Qxd6 {[%emt 0:00:04]} Qxd6 {[%emt 0:00:
02]} 29. Rxd6 {[%emt 0:00:01]} Bxb2 {[%emt 0:00:01]} 30. Bd5 {[%emt 0:00:08]}
c3 {[%emt 0:00:06]} 31. Bb3 {[%emt 0:00:06]} Re7 {[%emt 0:00:12]} 32. Rd7 {
[%emt 0:00:07]} Rxd7 {[%emt 0:00:05]} 33. cxd7 {[%emt 0:00:01]} Rd8 34. Rd1 {
[%emt 0:00:02]} Ra8 {[%emt 0:00:06]} 35. Bg5 {[%emt 0:00:04]} 1/2-1/2

[Event "FIDE Women World Blitz 2021"]
[Site "Warsaw"]
[Date "2021.12.29"]
[Round "9.33"]
[White "Ovod, Evgenija"]
[Black "Padmini, Rout"]
[Result "0-1"]
[ECO "B06"]
[WhiteElo "2366"]
[BlackElo "2353"]
[Annotator "NA"]
[PlyCount "61"]
[EventDate "2021.12.29"]
[EventType "swiss"]
[EventCountry "POL"]
[Tiebreak "Cut1 Buchholz"]
[SourceTitle "playchess.com"]
[Source "ChessBase"]
[SourceQuality "1"]
[TimeControl "180+2"]

1. e4 {[%emt 0:00:00]} c5 {[%emt 0:00:01]} 2. c3 {[%emt 0:00:02]} d5 {[%emt 0:
00:09]} 3. exd5 {[%emt 0:00:01]} Qxd5 {[%emt 0:00:01]} 4. d4 {[%emt 0:00:01]}
g6 {[%emt 0:00:03]} 5. Nf3 {[%emt 0:00:03]} Bg7 {[%emt 0:00:01]} 6. Be2 {
[%emt 0:00:04]} Nf6 {[%emt 0:00:01]} 7. c4 {[%emt 0:00:10]} Qd6 {[%emt 0:00:05]
} 8. dxc5 {[%emt 0:00:21]} Qxd1+ {[%emt 0:00:29]} 9. Bxd1 {[%emt 0:00:03]} Ne4
{[%emt 0:00:01]} 10. Bc2 {[%emt 0:00:17]} Nxc5 {[%emt 0:00:03]} 11. Na3 {
[%emt 0:00:17]} Nc6 {[%emt 0:00:06]} 12. Nb5 {[%emt 0:00:15]} O-O {[%emt 0:00:
02]} 13. Rb1 {[%emt 0:00:39]} Nb4 {[%emt 0:00:06]} 14. Bb3 {[%emt 0:00:06]} Bf5
{[%emt 0:00:04]} 15. Nc3 {[%emt 0:00:40]} Bxb1 {[%emt 0:00:10]} 16. Nxb1 {
[%emt 0:00:00]} Nbd3+ {[%emt 0:00:10]} 17. Ke2 {[%emt 0:00:02]} Nxc1+ {[%emt 0:
00:02]} 18. Rxc1 {[%emt 0:00:01]} Bxb2 {[%emt 0:00:01]} 19. Rc2 {[%emt 0:00:02]
} Bg7 {[%emt 0:00:03]} 20. Nbd2 {[%emt 0:00:03]} Rfd8 {[%emt 0:00:11]} 21. Rc1
{[%emt 0:00:06]} Rd6 {[%emt 0:00:03]} 22. Bc2 {[%emt 0:00:08]} Bh6 {[%emt 0:00:
18]} 23. Rb1 {[%emt 0:00:03]} Rad8 {[%emt 0:00:05]} 24. Nb3 {[%emt 0:00:03]}
Na4 {[%emt 0:00:06]} 25. Kf1 {[%emt 0:00:10]} Nc3 {[%emt 0:00:02]} 26. Rb2 {
[%emt 0:00:07]} b6 {[%emt 0:00:02]} 27. g3 {[%emt 0:00:03]} a5 {[%emt 0:00:06]}
28. c5 {[%emt 0:00:02]} bxc5 {[%emt 0:00:05]} 29. Nxc5 {[%emt 0:00:01]} Rc6 {
[%emt 0:00:18]} 30. Nb7 {[%emt 0:00:03]} Rd5 {[%emt 0:00:08]} 31. Bb3 {[%emt 0:
00:10]} 0-1